[Event "European Online Club-ch-C 2021"]
[Site "Online"]
[Date "2021.03.27"]
[Round "4.20"]
[White "Krejci, Jan"]
[Black "Keymer, Vincent"]
[Result "1/2-1/2"]
[ECO "D46"]
[WhiteElo "2540"]
[BlackElo "2591"]
[Annotator "ChessBase"]
[PlyCount "90"]
[EventDate "2021.03.27"]
[EventType "team-tourn"]
[EventCountry "NET"]
[SourceTitle "playchess.com"]
[Source "ChessBase"]
[SourceQuality "1"]
[TimeControl "900+5"]

1. c4 {[%emt 0:00:00]} c6 {[%emt 0:00:13]} 2. Nf3 {[%emt 0:00:04]} d5 {[%emt 0:00:01]} 3. e3 {[%emt 0:00:01]} Nf6 {[%emt 0:00:02]} 4. Nc3 {[%emt 0:00:02]} e6 {[%emt 0:00:01]} 5. b3 {[%emt 0:00:23]} Bd6 {[%emt 0:00:02]} 6. Bb2 {[%emt 0:00:02]} O-O {[%emt 0:00:01]} 7. d4 {[%emt 0:00:10]} Nbd7 {[%emt 0:00:04]} 8. Bd3 {[%emt 0:00:08]} Qe7 {[%emt 0:00:32]} 9. Qc2 {[%emt 0:00:22]} e5 {[%emt 0:01:47]} 10. cxd5 {[%emt 0:00:21]} cxd5 {[%emt 0:00:04]} 11. dxe5 {[%emt 0:00:50]} Nxe5 {[%emt 0:00:02]} 12. Nxe5 {[%emt 0:00:03]} Bxe5 {[%emt 0:03:37]} 13. Ne2 {[%emt 0:01:01]} Bg4 {[%emt 0:00:33]} 14. Bxe5 {[%emt 0:00:09]} Qxe5 {[%emt 0:00:00]} 15. O-O {[%emt 0:00:56]} Rac8 {[%emt 0:00:09]} 16. Qd2 {[%emt 0:00:01]} Bxe2 {[%emt 0:00:02]} 17. Qxe2 {[%emt 0:00:10]} Rc3 {[%emt 0:00:09]} 18. Rac1 {[%emt 0:00:19]} Rfc8 {[%emt 0:00:02]} 19. Rxc3 {[%emt 0:00:02]} Rxc3 {[%emt 0:00:00]} 20. Rd1 {[%emt 0:00:08]} Qc7 {[%emt 0:00:41]} 21. Qd2 {[%emt 0:00:41]} h5 {[%emt 0:00:57]} 22. h3 {[%emt 0:00:05]} Rc5 {[%emt 0:00:18]} 23. Qb2 {[%emt 0:00:42]} a5 {[%emt 0:00:18]} 24. Qd4 {[%emt 0:00:45]} Rc1 {[%emt 0:00:12]} 25. Rxc1 {[%emt 0:00:02]} Qxc1+ {[%emt 0:00:00]} 26. Kh2 {[%emt 0:00:02]} Qc7+ {[%emt 0:00:06]} 27. g3 {[%emt 0:00:19]} b6 {[%emt 0:00:08]} 28. Kg2 {[%emt 0:00:08]} Kf8 {[%emt 0:01:20]} 29. a3 {[%emt 0:00:29]} Qd6 {[%emt 0:01:23]} 30. b4 {[%emt 0:00:13]} axb4 {[%emt 0:00:02]} 31. axb4 {[%emt 0:00:00]} Ke7 {[%emt 0:00:04]} 32. Be2 {[%emt 0:00:20]} g6 {[%emt 0:00:32]} 33. Bf3 {[%emt 0:00:04]} Ke6 {[%emt 0:00:23]} 34. g4 {[%emt 0:00:24]} hxg4 {[%emt 0:00:07]} 35. hxg4 {[%emt 0:00:00]} Nd7 {[%emt 0:00:46]} 36. Qc3 {[%emt 0:01:22]} Ne5 {[%emt 0:00:19]} 37. Qc8+ {[%emt 0:00:15]} Kf6 {[%emt 0:00:03]} 38. Qc3 {[%emt 0:00:06]} Ke7 {[%emt 0:00:13]} 39. Qd4 {[%emt 0:00:10]} Ke6 {[%emt 0:00:15]} 40. Be2 {[%emt 0:01:18]} Nd7 {[%emt 0:00:16]} 41. Bf3 {[%emt 0:00:09]} Qe5 {[%emt 0:00:09]} 42. Qd3 {[%emt 0:00:13]} Qd6 {[%emt 0:00:25]} 43. Qd4 {[%emt 0:00:02]} Ne5 {[%emt 0:00:26]} 44. Be2 {[%emt 0:00:03]} Ke7 {[%emt 0:00:01]} 45. Bf3 {[%emt 0:00:18]} Ke6 {[%emt 0:00:11]} 1/2-1/2

[Event "European Online Club-ch-C 2021"]
[Site "Online"]
[Date "2021.03.27"]
[Round "5.1"]
[White "Michalik, Peter"]
[Black "Sahin, Ozgun"]
[Result "1-0"]
[ECO "D37"]
[WhiteElo "2594"]
[BlackElo "2281"]
[Annotator "ChessBase"]
[PlyCount "51"]
[EventDate "2021.03.27"]
[EventType "team-tourn"]
[EventCountry "NET"]
[SourceTitle "playchess.com"]
[Source "ChessBase"]
[SourceQuality "1"]
[TimeControl "900+5"]

1. d4 {[%emt 0:00:00]} d5 {[%emt 0:00:04]} 2. c4 {[%emt 0:00:02]} e6 {[%emt 0:00:01]} 3. Nf3 {[%emt 0:00:02]} Nf6 {[%emt 0:00:02]} 4. Nc3 {[%emt 0:00:02]} Be7 {[%emt 0:00:04]} 5. Bf4 {[%emt 0:00:03]} O-O {[%emt 0:00:04]} 6. a3 {[%emt 0:00:07]} c5 {[%emt 0:00:26]} 7. dxc5 {[%emt 0:00:18]} Bxc5 {[%emt 0:00:06]} 8. e3 {[%emt 0:00:02]} Nc6 {[%emt 0:00:39]} 9. Qc2 {[%emt 0:00:15]} Bd6 {[%emt 0:03:10]} 10. Bg5 {[%emt 0:00:13]} Be7 {[%emt 0:00:20]} 11. Rd1 {[%emt 0:00:25]} Qa5 {[%emt 0:00:08]} 12. Bd3 {[%emt 0:01:25]} h6 {[%emt 0:00:10]} 13. Bh4 {[%emt 0:00:07]} dxc4 {[%emt 0:00:22]} 14. Bxc4 {[%emt 0:00:07]} a6 {[%emt 0:00:17]} 15. O-O {[%emt 0:00:05]} b5 {[%emt 0:00:55]} 16. Ba2 {[%emt 0:00:15]} Bb7 {[%emt 0:00:14]} 17. Bb1 {[%emt 0:00:29]} g6 {[%emt 0:01:09]} 18. Bxf6 {[%emt 0:00:39]} Bxf6 {[%emt 0:00:03]} 19. Ne4 {[%emt 0:00:10]} Bg7 {[%emt 0:00:26]} 20. Nc5 {[%emt 0:00:11]} Bc8 {[%emt 0:00:23]} 21. h4 {[%emt 0:00:11]} h5 {[%emt 0:01:12]} 22. Ng5 {[%emt 0:00:09]} e5 {[%emt 0:00:37]} 23. Nd7 {[%emt 0:00:25]} Bxd7 {[%emt 0:01:04]} 24. Rxd7 {[%emt 0:00:00]} Qb6 {[%emt 0:00:05]} 25. Rd6 {[%emt 0:00:43]} Rac8 {[%emt 0:00:11]} 26. Rc1 {[%emt 0:00:12]} 1-0

[Event "European Online Club-ch-C 2021"]
[Site "Online"]
[Date "2021.03.27"]
[Round "5.2"]
[White "Okuyaz, Duru"]
[Black "Plat, Vojtech"]
[Result "1-0"]
[ECO "C41"]
[WhiteElo "2076"]
[BlackElo "2552"]
[Annotator "ChessBase"]
[PlyCount "67"]
[EventDate "2021.03.27"]
[EventType "team-tourn"]
[EventCountry "NET"]
[SourceTitle "playchess.com"]
[Source "ChessBase"]
[SourceQuality "1"]
[TimeControl "900+5"]

1. e4 {[%emt 0:00:00]} d6 {[%emt 0:00:08]} 2. d4 {[%emt 0:00:04]} Nf6 {[%emt 0:00:02]} 3. Nc3 {[%emt 0:00:01]} e5 {[%emt 0:00:01]} 4. Nf3 {[%emt 0:00:13]} exd4 {[%emt 0:00:02]} 5. Nxd4 {[%emt 0:00:01]} Be7 {[%emt 0:00:02]} 6. Be2 {[%emt 0:00:11]} O-O {[%emt 0:00:02]} 7. O-O {[%emt 0:00:04]} Re8 {[%emt 0:00:01]} 8. Be3 {[%emt 0:00:14]} Bf8 {[%emt 0:00:04]} 9. f3 {[%emt 0:00:02]} d5 {[%emt 0:00:04]} 10. Bg5 {[%emt 0:00:51]} dxe4 {[%emt 0:00:21]} 11. Nxe4 {[%emt 0:00:24]} Be7 {[%emt 0:00:02]} 12. Nxf6+ {[%emt 0:00:52]} Bxf6 {[%emt 0:00:03]} 13. Bxf6 {[%emt 0:00:04]} Qxf6 {[%emt 0:00:02]} 14. c3 {[%emt 0:00:17]} a6 {[%emt 0:00:03]} 15. Bc4 {[%emt 0:00:11]} c5 {[%emt 0:00:04]} 16. Ne2 {[%emt 0:00:39]} Nc6 {[%emt 0:00:03]} 17. Ng3 {[%emt 0:00:12]} Bf5 {[%emt 0:00:33]} 18. Qb3 {[%emt 0:00:46]} Bg6 {[%emt 0:01:45]} 19. Bd5 {[%emt 0:01:16]} b5 {[%emt 0:00:04]} 20. Ne4 {[%emt 0:00:09]} Bxe4 {[%emt 0:01:27]} 21. fxe4 {[%emt 0:00:11]} Qh6 {[%emt 0:00:22]} 22. Bxf7+ {[%emt 0:00:29]} Kh8 {[%emt 0:00:02]} 23. Bxe8 {[%emt 0:00:09]} Rxe8 {[%emt 0:00:02]} 24. Qf7 {[%emt 0:00:13]} Rg8 {[%emt 0:00:03]} 25. Qf5 {[%emt 0:00:39]} Qe3+ {[%emt 0:00:17]} 26. Kh1 {[%emt 0:00:07]} Na5 {[%emt 0:00:10]} 27. Rad1 {[%emt 0:00:11]} Nc4 {[%emt 0:00:05]} 28. b3 {[%emt 0:02:10]} Nd2 {[%emt 0:00:05]} 29. Rfe1 {[%emt 0:00:06]} Qxc3 {[%emt 0:00:03]} 30. e5 {[%emt 0:00:25]} c4 {[%emt 0:00:10]} 31. e6 {[%emt 0:00:32]} cxb3 {[%emt 0:00:02]} 32. axb3 {[%emt 0:00:03]} Nxb3 {[%emt 0:00:17]} 33. e7 {[%emt 0:00:08]} Nd4 {[%emt 0:00:03]} 34. Qd5 {[%emt 0:00:18]} 1-0

[Event "European Online Club-ch-C 2021"]
[Site "Online"]
[Date "2021.03.27"]
[Round "5.3"]
[White "Stocek, Jiri"]
[Black "Gallevci, Yagiz"]
[Result "1-0"]
[ECO "A11"]
[WhiteElo "2604"]
[BlackElo "2069"]
[Annotator "ChessBase"]
[PlyCount "85"]
[EventDate "2021.03.27"]
[EventType "team-tourn"]
[EventCountry "NET"]
[SourceTitle "playchess.com"]
[Source "ChessBase"]
[SourceQuality "1"]
[TimeControl "900+5"]

1. c4 {[%emt 0:00:00]} c6 {[%emt 0:00:06]} 2. Nf3 {[%emt 0:00:22]} d5 {[%emt 0:00:05]} 3. g3 {[%emt 0:00:02]} Nf6 {[%emt 0:00:02]} 4. Bg2 {[%emt 0:00:09]} Bf5 {[%emt 0:00:47]} 5. Qb3 {[%emt 0:00:32]} Qb6 {[%emt 0:00:34]} 6. d3 {[%emt 0:00:08]} e6 {[%emt 0:00:43]} 7. Be3 {[%emt 0:00:16]} Qxb3 {[%emt 0:00:40]} 8. axb3 {[%emt 0:00:02]} Na6 {[%emt 0:00:00]} 9. O-O {[%emt 0:01:37]} Bg4 {[%emt 0:01:46]} 10. h3 {[%emt 0:02:55]} Bxf3 {[%emt 0:00:04]} 11. Bxf3 {[%emt 0:00:03]} Bd6 {[%emt 0:01:06]} 12. Nc3 {[%emt 0:00:51]} Ke7 {[%emt 0:00:55]} 13. Rfd1 {[%emt 0:00:18]} Rhd8 {[%emt 0:00:26]} 14. g4 {[%emt 0:01:09]} Nb4 {[%emt 0:05:55]} 15. Bxa7 {[%emt 0:01:11]} Nd7 {[%emt 0:01:39]} 16. Be3 {[%emt 0:03:01]} Nc2 {[%emt 0:00:09]} 17. Rxa8 {[%emt 0:00:34]} Rxa8 {[%emt 0:00:00]} 18. d4 {[%emt 0:00:18]} Nxe3 {[%emt 0:01:03]} 19. fxe3 {[%emt 0:00:03]} Bb4 {[%emt 0:00:01]} 20. cxd5 {[%emt 0:00:43]} cxd5 {[%emt 0:00:22]} 21. e4 {[%emt 0:00:17]} Bxc3 {[%emt 0:00:11]} 22. bxc3 {[%emt 0:00:03]} Nb6 {[%emt 0:00:09]} 23. exd5 {[%emt 0:00:07]} exd5 {[%emt 0:00:00]} 24. e4 {[%emt 0:00:12]} Ra3 {[%emt 0:00:02]} 25. Rb1 {[%emt 0:00:04]} Kd6 {[%emt 0:00:08]} 26. e5+ {[%emt 0:00:14]} Ke6 {[%emt 0:00:04]} 27. Rb2 {[%emt 0:00:05]} Ra1+ {[%emt 0:00:04]} 28. Kf2 {[%emt 0:00:02]} Rc1 {[%emt 0:00:01]} 29. c4 {[%emt 0:00:06]} f6 {[%emt 0:00:16]} 30. exf6 {[%emt 0:00:16]} gxf6 {[%emt 0:00:01]} 31. c5 {[%emt 0:00:31]} Nc8 {[%emt 0:00:10]} 32. Re2+ {[%emt 0:00:02]} Kd7 {[%emt 0:00:01]} 33. Bxd5 {[%emt 0:00:03]} Rd1 {[%emt 0:00:00]} 34. Be6+ {[%emt 0:00:06]} Kd8 {[%emt 0:00:02]} 35. d5 {[%emt 0:00:02]} Ne7 {[%emt 0:00:01]} 36. d6 {[%emt 0:00:04]} Nc6 {[%emt 0:00:12]} 37. Bf5 {[%emt 0:00:10]} h6 {[%emt 0:00:06]} 38. Re6 {[%emt 0:00:08]} Nd4 {[%emt 0:00:12]} 39. Rxf6 {[%emt 0:00:09]} Ke8 {[%emt 0:00:00]} 40. d7+ {[%emt 0:00:08]} Ke7 {[%emt 0:00:02]} 41. Rf7+ {[%emt 0:00:42]} Kxf7 {[%emt 0:00:02]} 42. d8=Q {[%emt 0:00:03]} Rd2+ {[%emt 0:00:00]} 43. Ke3 {[%emt 0:00:05]} 1-0

[Event "European Online Club-ch-C 2021"]
[Site "Online"]
[Date "2021.03.27"]
[Round "5.4"]
[White "Deveci, Huseyin Said"]
[Black "Krejci, Jan"]
[Result "0-1"]
[ECO "C68"]
[WhiteElo "1521"]
[BlackElo "2540"]
[Annotator "ChessBase"]
[PlyCount "124"]
[EventDate "2021.03.27"]
[EventType "team-tourn"]
[EventCountry "NET"]
[SourceTitle "playchess.com"]
[Source "ChessBase"]
[SourceQuality "1"]
[TimeControl "900+5"]

1. e4 {[%emt 0:00:00]} e5 {[%emt 0:00:03]} 2. Nf3 {[%emt 0:00:03]} Nc6 {[%emt 0:00:01]} 3. Bb5 {[%emt 0:00:02]} a6 {[%emt 0:00:03]} 4. Bxc6 {[%emt 0:00:04]} dxc6 {[%emt 0:00:02]} 5. O-O {[%emt 0:00:01]} Qf6 {[%emt 0:00:05]} 6. d4 {[%emt 0:00:38]} exd4 {[%emt 0:00:03]} 7. Qxd4 {[%emt 0:00:26]} Bg4 {[%emt 0:01:20]} 8. e5 {[%emt 0:00:53]} Qg6 {[%emt 0:00:20]} 9. Ng5 {[%emt 0:01:36]} Bd7 {[%emt 0:01:26]} 10. Nc3 {[%emt 0:02:23]} Be7 {[%emt 0:00:32]} 11. f4 {[%emt 0:01:11]} Nh6 {[%emt 0:00:32]} 12. Kh1 {[%emt 0:00:41]} Nf5 {[%emt 0:00:33]} 13. Qd3 {[%emt 0:00:38]} h6 {[%emt 0:00:33]} 14. Nf3 {[%emt 0:00:45]} O-O-O {[%emt 0:00:22]} 15. Be3 {[%emt 0:01:04]} Be6 {[%emt 0:00:21]} 16. Qe4 {[%emt 0:02:13]} Bd5 {[%emt 0:02:27]} 17. Nxd5 {[%emt 0:00:24]} Rxd5 {[%emt 0:00:00]} 18. Kg1 {[%emt 0:02:02]} Nxe3 {[%emt 0:00:03]} 19. Qxg6 {[%emt 0:00:01]} fxg6 {[%emt 0:00:03]} 20. Rf2 {[%emt 0:00:02]} Bc5 {[%emt 0:00:09]} 21. Kh1 {[%emt 0:00:56]} Rhd8 {[%emt 0:00:25]} 22. Re2 {[%emt 0:00:30]} Rd1+ {[%emt 0:00:09]} 23. Rxd1 {[%emt 0:00:02]} Rxd1+ {[%emt 0:00:01]} 24. Re1 {[%emt 0:00:01]} Rxe1+ {[%emt 0:00:12]} 25. Nxe1 {[%emt 0:00:01]} Kd7 {[%emt 0:00:02]} 26. h3 {[%emt 0:00:04]} Ke6 {[%emt 0:00:04]} 27. Nd3 {[%emt 0:00:04]} Bb6 {[%emt 0:00:05]} 28. c3 {[%emt 0:00:01]} c5 {[%emt 0:00:16]} 29. g3 {[%emt 0:00:03]} c4 {[%emt 0:00:02]} 30. Ne1 {[%emt 0:00:25]} Nd1 {[%emt 0:00:04]} 31. b3 {[%emt 0:00:05]} cxb3 {[%emt 0:00:04]} 32. axb3 {[%emt 0:00:01]} Nxc3 {[%emt 0:00:02]} 33. Kg2 {[%emt 0:00:01]} Nb5 {[%emt 0:00:18]} 34. Kf3 {[%emt 0:00:02]} Nd4+ {[%emt 0:00:02]} 35. Ke4 {[%emt 0:00:01]} Nxb3 {[%emt 0:00:02]} 36. g4 {[%emt 0:00:07]} Nc5+ {[%emt 0:00:02]} 37. Kf3 {[%emt 0:00:01]} a5 {[%emt 0:00:04]} 38. Nc2 {[%emt 0:00:04]} a4 {[%emt 0:00:25]} 39. Na3 {[%emt 0:00:02]} g5 {[%emt 0:00:13]} 40. Nc4 {[%emt 0:00:10]} gxf4 {[%emt 0:00:08]} 41. Kxf4 {[%emt 0:00:02]} g5+ {[%emt 0:00:02]} 42. Kf3 {[%emt 0:00:03]} Nd7 {[%emt 0:00:05]} 43. Ke4 {[%emt 0:00:04]} Bc5 {[%emt 0:00:03]} 44. Na5 {[%emt 0:00:24]} a3 {[%emt 0:00:07]} 45. Nb3 {[%emt 0:00:08]} a2 {[%emt 0:00:05]} 46. Na1 {[%emt 0:00:08]} Nxe5 {[%emt 0:00:04]} 47. Nb3 {[%emt 0:00:03]} b6 {[%emt 0:00:07]} 48. Na1 {[%emt 0:00:02]} Nf7 {[%emt 0:00:05]} 49. Nb3 {[%emt 0:00:02]} Nd6+ {[%emt 0:00:01]} 50. Kf3 {[%emt 0:00:03]} Kd5 {[%emt 0:00:02]} 51. Na1 {[%emt 0:00:03]} Bd4 {[%emt 0:00:05]} 52. Nb3 {[%emt 0:00:02]} a1=Q {[%emt 0:00:02]} 53. Nxa1 {[%emt 0:00:01]} Bxa1 {[%emt 0:00:01]} 54. Kg3 {[%emt 0:00:08]} b5 {[%emt 0:00:05]} 55. h4 {[%emt 0:00:02]} b4 {[%emt 0:00:05]} 56. hxg5 {[%emt 0:00:03]} hxg5 {[%emt 0:00:00]} 57. Kf3 {[%emt 0:00:05]} b3 {[%emt 0:00:01]} 58. Ke3 {[%emt 0:00:02]} b2 {[%emt 0:00:02]} 59. Kf3 {[%emt 0:00:02]} b1=Q {[%emt 0:00:02]} 60. Ke3 {[%emt 0:00:01]} Qe1+ {[%emt 0:00:04]} 61. Kf3 {[%emt 0:00:02]} Qf1+ {[%emt 0:00:02]} 62. Kg3 {[%emt 0:00:02]} Be5# {[%emt 0:00:03]} 0-1

[Event "European Online Club-ch-C 2021"]
[Site "Online"]
[Date "2021.03.27"]
[Round "5.5"]
[White "Delgado Ramirez, Neuris"]
[Black "Bluebaum, Matthias"]
[Result "0-1"]
[ECO "C11"]
[WhiteElo "2615"]
[BlackElo "2670"]
[Annotator "ChessBase"]
[PlyCount "120"]
[EventDate "2021.03.27"]
[EventType "team-tourn"]
[EventCountry "NET"]
[SourceTitle "playchess.com"]
[Source "ChessBase"]
[SourceQuality "1"]
[TimeControl "900+5"]

1. e4 {[%emt 0:00:00]} e6 {[%emt 0:00:04]} 2. d4 {[%emt 0:00:40]} d5 {[%emt 0:00:05]} 3. Nc3 {[%emt 0:00:04]} Nf6 {[%emt 0:00:07]} 4. e5 {[%emt 0:00:56]} Nfd7 {[%emt 0:00:04]} 5. Nce2 {[%emt 0:00:03]} c5 {[%emt 0:00:06]} 6. c3 {[%emt 0:00:02]} Nc6 {[%emt 0:00:04]} 7. Nf3 {[%emt 0:00:04]} Be7 {[%emt 0:00:15]} 8. a3 {[%emt 0:00:16]} O-O {[%emt 0:00:29]} 9. Nf4 {[%emt 0:00:15]} Qa5 {[%emt 0:00:05]} 10. Bd3 {[%emt 0:00:49]} Nxd4 {[%emt 0:00:34]} 11. Nxd4 {[%emt 0:00:05]} cxd4 {[%emt 0:00:00]} 12. Qh5 {[%emt 0:02:31]} f5 {[%emt 0:02:34]} 13. exf6 {[%emt 0:04:33]} Nxf6 {[%emt 0:00:05]} 14. Qh4 {[%emt 0:00:03]} e5 {[%emt 0:01:22]} 15. b4 {[%emt 0:00:18]} Qd8 {[%emt 0:00:44]} 16. Ng6 {[%emt 0:00:40]} e4 {[%emt 0:01:57]} 17. Nxf8 {[%emt 0:00:18]} exd3 {[%emt 0:01:24]} 18. Qxd4 {[%emt 0:00:22]} Qxf8 {[%emt 0:00:05]} 19. Qxd3 {[%emt 0:00:05]} Be6 {[%emt 0:00:35]} 20. O-O {[%emt 0:00:05]} Bd6 {[%emt 0:00:18]} 21. h3 {[%emt 0:00:32]} Ne4 {[%emt 0:00:40]} 22. c4 {[%emt 0:01:07]} Qf6 {[%emt 0:00:03]} 23. Ra2 {[%emt 0:00:58]} Qc3 {[%emt 0:01:08]} 24. Rd2 {[%emt 0:01:02]} Be5 {[%emt 0:01:44]} 25. Qxc3 {[%emt 0:00:22]} Bxc3 {[%emt 0:00:00]} 26. Re2 {[%emt 0:00:03]} Kf7 {[%emt 0:00:43]} 27. Rd1 {[%emt 0:00:02]} Nf6 {[%emt 0:00:02]} 28. cxd5 {[%emt 0:00:10]} Bxd5 {[%emt 0:00:04]} 29. Bb2 {[%emt 0:00:09]} Bc4 {[%emt 0:00:19]} 30. Rc2 {[%emt 0:00:13]} Bb3 {[%emt 0:00:02]} 31. Rxc3 {[%emt 0:00:01]} Bxd1 {[%emt 0:00:01]} 32. Rc7+ {[%emt 0:00:02]} Kg6 {[%emt 0:00:01]} 33. Rxb7 {[%emt 0:00:02]} a6 {[%emt 0:00:02]} 34. Rb6 {[%emt 0:00:07]} Be2 {[%emt 0:00:08]} 35. f4 {[%emt 0:00:06]} Kf5 {[%emt 0:00:39]} 36. Rb7 {[%emt 0:00:14]} Rg8 {[%emt 0:00:10]} 37. Be5 {[%emt 0:00:04]} h5 {[%emt 0:00:15]} 38. Kf2 {[%emt 0:00:02]} Bb5 {[%emt 0:00:03]} 39. Ra7 {[%emt 0:00:06]} Nd5 {[%emt 0:00:21]} 40. Kf3 {[%emt 0:00:10]} g5 {[%emt 0:00:22]} 41. g4+ {[%emt 0:00:07]} hxg4+ {[%emt 0:00:03]} 42. hxg4+ {[%emt 0:00:02]} Ke6 {[%emt 0:00:01]} 43. a4 {[%emt 0:00:12]} Bc4 {[%emt 0:00:20]} 44. b5 {[%emt 0:00:02]} axb5 {[%emt 0:00:14]} 45. Ra6+ {[%emt 0:00:06]} Ke7 {[%emt 0:00:11]} 46. Ra7+ {[%emt 0:00:04]} Ke6 {[%emt 0:00:02]} 47. Ra6+ {[%emt 0:00:02]} Kd7 {[%emt 0:00:01]} 48. axb5 {[%emt 0:00:12]} gxf4 {[%emt 0:00:14]} 49. Rd6+ {[%emt 0:00:07]} Ke7 {[%emt 0:00:01]} 50. b6 {[%emt 0:00:02]} Ba6 {[%emt 0:00:06]} 51. Rh6 {[%emt 0:00:16]} Kd7 {[%emt 0:00:01]} 52. Rd6+ {[%emt 0:00:03]} Kc8 {[%emt 0:00:04]} 53. Rc6+ {[%emt 0:00:11]} Kb7 {[%emt 0:00:03]} 54. Rd6 {[%emt 0:00:02]} Ka8 {[%emt 0:00:08]} 55. Ke4 {[%emt 0:00:09]} Bb7 {[%emt 0:00:02]} 56. Kd4 {[%emt 0:00:09]} f3 {[%emt 0:00:04]} 57. Rd7 {[%emt 0:00:06]} Rf8 {[%emt 0:00:05]} 58. Bg3 {[%emt 0:00:06]} Nxb6 {[%emt 0:00:02]} 59. Rd6 {[%emt 0:00:04]} Nc8 {[%emt 0:00:02]} 60. Rd7 {[%emt 0:00:02]} f2 {[%emt 0:00:02]} 0-1

[Event "European Online Club-ch-C 2021"]
[Site "Online"]
[Date "2021.03.27"]
[Round "5.6"]
[White "Donchenko, Alexander"]
[Black "Martinez Alcantara, Jose Eduardo"]
[Result "0-1"]
[ECO "E33"]
[WhiteElo "2678"]
[BlackElo "2620"]
[Annotator "ChessBase"]
[PlyCount "104"]
[EventDate "2021.03.27"]
[EventType "team-tourn"]
[EventCountry "NET"]
[SourceTitle "playchess.com"]
[Source "ChessBase"]
[SourceQuality "1"]
[TimeControl "900+5"]

1. d4 {[%emt 0:00:00]} Nf6 {[%emt 0:00:05]} 2. c4 {[%emt 0:00:02]} e6 {[%emt 0:00:01]} 3. Nc3 {[%emt 0:00:01]} Bb4 {[%emt 0:00:05]} 4. Qc2 {[%emt 0:00:03]} d6 {[%emt 0:00:22]} 5. e3 {[%emt 0:00:03]} Nc6 {[%emt 0:01:01]} 6. Bd3 {[%emt 0:00:15]} e5 {[%emt 0:00:03]} 7. d5 {[%emt 0:00:14]} Bxc3+ {[%emt 0:00:02]} 8. Qxc3 {[%emt 0:00:07]} Ne7 {[%emt 0:00:15]} 9. f3 {[%emt 0:01:09]} O-O {[%emt 0:00:47]} 10. Ne2 {[%emt 0:00:07]} c5 {[%emt 0:02:50]} 11. e4 {[%emt 0:00:38]} Ng6 {[%emt 0:01:35]} 12. Be3 {[%emt 0:01:41]} a5 {[%emt 0:00:56]} 13. Qd2 {[%emt 0:01:53]} Ne8 {[%emt 0:00:55]} 14. O-O-O {[%emt 0:02:43]} f5 {[%emt 0:00:58]} 15. exf5 {[%emt 0:01:36]} Bxf5 {[%emt 0:00:04]} 16. Bxf5 {[%emt 0:00:02]} Rxf5 {[%emt 0:00:01]} 17. h4 {[%emt 0:00:01]} Ne7 {[%emt 0:02:32]} 18. h5 {[%emt 0:00:22]} Rf7 {[%emt 0:00:38]} 19. h6 {[%emt 0:00:05]} g6 {[%emt 0:00:01]} 20. f4 {[%emt 0:00:03]} Nf5 {[%emt 0:00:41]} 21. Rdf1 {[%emt 0:00:51]} Nf6 {[%emt 0:00:41]} 22. fxe5 {[%emt 0:00:13]} dxe5 {[%emt 0:00:01]} 23. Bg5 {[%emt 0:00:42]} Ne4 {[%emt 0:00:38]} 24. Bxd8 {[%emt 0:00:08]} Nxd2 {[%emt 0:00:02]} 25. Kxd2 {[%emt 0:00:03]} Rxd8 {[%emt 0:00:01]} 26. Nc3 {[%emt 0:00:38]} Nxh6 {[%emt 0:00:39]} 27. Na4 {[%emt 0:01:44]} b5 {[%emt 0:00:45]} 28. Rxf7 {[%emt 0:00:53]} Nxf7 {[%emt 0:00:03]} 29. cxb5 {[%emt 0:00:01]} Rxd5+ {[%emt 0:00:05]} 30. Ke2 {[%emt 0:00:10]} Nd6 {[%emt 0:00:21]} 31. b6 {[%emt 0:00:04]} Rd4 {[%emt 0:00:03]} 32. b3 {[%emt 0:00:06]} c4 {[%emt 0:00:09]} 33. Rd1 {[%emt 0:00:12]} Rxd1 {[%emt 0:00:09]} 34. Kxd1 {[%emt 0:00:01]} cxb3 {[%emt 0:00:03]} 35. axb3 {[%emt 0:00:00]} Nb7 {[%emt 0:00:10]} 36. Ke2 {[%emt 0:00:17]} Kf7 {[%emt 0:00:02]} 37. Kd3 {[%emt 0:00:02]} Ke6 {[%emt 0:00:01]} 38. Kc4 {[%emt 0:00:02]} Kd6 {[%emt 0:00:08]} 39. Kb5 {[%emt 0:00:02]} h5 {[%emt 0:00:08]} 40. Nc3 {[%emt 0:00:15]} h4 {[%emt 0:00:08]} 41. Ne4+ {[%emt 0:00:04]} Kd5 {[%emt 0:00:08]} 42. Ka6 {[%emt 0:00:14]} Kc6 {[%emt 0:00:02]} 43. Ka7 {[%emt 0:00:02]} Nd8 {[%emt 0:00:05]} 44. Ng5 {[%emt 0:00:06]} Kd5 {[%emt 0:00:03]} 45. b7 {[%emt 0:00:37]} e4 {[%emt 0:00:01]} 46. Kb6 {[%emt 0:00:12]} Nxb7 {[%emt 0:00:02]} 47. Kxb7 {[%emt 0:00:00]} e3 {[%emt 0:00:08]} 48. Kb6 {[%emt 0:00:02]} e2 {[%emt 0:00:01]} 49. Nf3 {[%emt 0:00:02]} g5 {[%emt 0:00:05]} 50. Kxa5 {[%emt 0:00:05]} g4 {[%emt 0:00:01]} 51. Ne1 {[%emt 0:00:03]} h3 {[%emt 0:00:02]} 52. gxh3 {[%emt 0:00:02]} gxh3 {[%emt 0:00:01]} 0-1

[Event "European Online Club-ch-C 2021"]
[Site "Online"]
[Date "2021.03.27"]
[Round "5.7"]
[White "Guerrero Olmos, Sergio"]
[Black "Heimann, Andreas"]
[Result "1-0"]
[ECO "A48"]
[WhiteElo "2372"]
[BlackElo "2606"]
[Annotator "ChessBase"]
[PlyCount "79"]
[EventDate "2021.03.27"]
[EventType "team-tourn"]
[EventCountry "NET"]
[SourceTitle "playchess.com"]
[Source "ChessBase"]
[SourceQuality "1"]
[TimeControl "900+5"]

1. d4 {[%emt 0:00:00]} Nf6 {[%emt 0:00:03]} 2. Nf3 {[%emt 0:00:01]} g6 {[%emt 0:00:03]} 3. Bf4 {[%emt 0:00:01]} Bg7 {[%emt 0:00:02]} 4. e3 {[%emt 0:00:01]} d6 {[%emt 0:00:01]} 5. h3 {[%emt 0:00:03]} O-O {[%emt 0:00:04]} 6. Be2 {[%emt 0:00:04]} c5 {[%emt 0:00:03]} 7. c3 {[%emt 0:00:12]} Qb6 {[%emt 0:00:04]} 8. Qb3 {[%emt 0:00:09]} Be6 {[%emt 0:00:02]} 9. Qa3 {[%emt 0:00:09]} Ne4 {[%emt 0:03:11]} 10. O-O {[%emt 0:00:18]} Nd7 {[%emt 0:00:02]} 11. Nbd2 {[%emt 0:00:39]} Nxd2 {[%emt 0:00:07]} 12. Nxd2 {[%emt 0:00:04]} Qc7 {[%emt 0:00:07]} 13. Bf3 {[%emt 0:00:18]} f5 {[%emt 0:01:22]} 14. Rfe1 {[%emt 0:01:19]} Bf7 {[%emt 0:00:10]} 15. Bh2 {[%emt 0:00:33]} e5 {[%emt 0:00:09]} 16. e4 {[%emt 0:00:19]} f4 {[%emt 0:00:16]} 17. b4 {[%emt 0:00:25]} exd4 {[%emt 0:00:32]} 18. Bxf4 {[%emt 0:00:47]} dxc3 {[%emt 0:00:11]} 19. Nb3 {[%emt 0:00:19]} c4 {[%emt 0:00:45]} 20. Nc5 {[%emt 0:00:05]} Ne5 {[%emt 0:01:30]} 21. Bxe5 {[%emt 0:00:07]} Bxe5 {[%emt 0:00:12]} 22. Na4 {[%emt 0:00:04]} Be6 {[%emt 0:02:20]} 23. Nxc3 {[%emt 0:02:01]} Rxf3 {[%emt 0:01:25]} 24. gxf3 {[%emt 0:00:03]} Rf8 {[%emt 0:00:12]} 25. Nd5 {[%emt 0:01:56]} Bxd5 {[%emt 0:00:47]} 26. exd5 {[%emt 0:00:03]} Bxa1 {[%emt 0:00:00]} 27. Rxa1 {[%emt 0:00:04]} Qf7 {[%emt 0:00:03]} 28. Qxa7 {[%emt 0:00:50]} Qxf3 {[%emt 0:00:20]} 29. Re1 {[%emt 0:00:12]} Qxd5 {[%emt 0:00:07]} 30. Re3 {[%emt 0:00:41]} Qd2 {[%emt 0:00:31]} 31. Re4 {[%emt 0:02:56]} d5 {[%emt 0:00:50]} 32. Rg4 {[%emt 0:01:23]} c3 {[%emt 0:00:06]} 33. Qb6 {[%emt 0:00:05]} Qd1+ {[%emt 0:00:35]} 34. Kh2 {[%emt 0:00:14]} Qd3 {[%emt 0:00:08]} 35. Qe6+ {[%emt 0:00:06]} Rf7 {[%emt 0:00:23]} 36. Qe8+ {[%emt 0:00:04]} Kg7 {[%emt 0:00:02]} 37. Qe5+ {[%emt 0:00:05]} Kf8 {[%emt 0:00:04]} 38. Qb8+ {[%emt 0:00:27]} Ke7 {[%emt 0:00:05]} 39. Qxb7+ {[%emt 0:00:13]} Kf6 {[%emt 0:00:01]} 40. Rf4+ {[%emt 0:00:04]} 1-0